Workbook

Sheet AER Final Decision
A1: AER Final Decision for Ergon Energy - Rate 2B - Smart Control Annual Prices
B4: Year | C4: 2025-26 | D4: 2026-27 | E4: 2027-28 | F4: 2028-29 | G4: 2029-30
A5: AER Final Decision | B5: Rate 2B - Gifted & Ergon Energy operated | C5: =Calc!C29*Inputs!C16 -> 34.23445734 | D5: =Calc!D29*Inputs!D16 -> 35.15878768 | E5: =Calc!E29*Inputs!E16 -> 36.08463576 | F5: =Calc!F29*Inputs!F16 -> 37.11220755 | G5: =Calc!G29*Inputs!G16 -> 37.93607828
A6: Revised Proposal | B6: Rate 2B - Gifted & Ergon Energy operated | C6: 34.63289155 | D6: 34.63289155 | E6: 35.74114408 | F6: 36.98591511 | G6: 38.06517624
C8: Difference | D8: =D5-D6 -> 0.5258961293 | E8: =E5-E6 -> 0.3434916752 | F8: =F5-F6 -> 0.1262924437 | G8: =G5-G6 -> -0.129097958
B11: Note: There are no prices for smart controls for 2025–26 as it is introduced in 2026-27. Our final decision is to update the smart control models for CPI to derive the prices for 2026–27.

Sheet AER Final decision changes
A1: Cell | B1: Description of Change
A2: 'Inputs'C23 | B2: Updated USD/AUD exchange spot rate | C2: Source used | E2: https://www.rba.gov.au/statistics/historical-data.html#exchange-rates
A3: 'Inputs' row 9 and row 14 | B3: Updated forecast CPI | C3: Source used | E3: AER modelling

Sheet Cover page
A2: ACS Smart Control Devices - Public Lighting pricing model for Ergon Energy
A3: Regulatory control period 1 July 2025 to 30 June 2030

Sheet Inputs
B2: Inputs and Assumptions
B4: Rates | M4: AER notes
B5: Ergon Energy (Gifted & Operated) | C5: Rate 2B | D5: Smart control devices
B7: Escalations
B8: Year | C8: 2022-23 | D8: 2023-24 | E8: 2024-25 | F8: 2025-26 | G8: 2026-27 | H8: 2027-28 | I8: 2028-29 | J8: 2029-30
B9: CPI | C9: 0.06 | D9: 0.038 | E9: 0.028 | F9: 0.032 | G9: 0.027 | H9: 0.02633333333 | I9: 0.02566666667 | J9: 0.025 | M9: Updated CPI actual and forecast
B10: Escalations | C10: 1 | D10: =C10*(1+D9) -> 1.038 | E10: =D10*(1+E9) -> 1.067064 | F10: 1.101210048 | G10: 1.130942719 | H10: 1.160724211 | I10: 1.190516132 | J10: 1.220279036
E11: 1 | F11: =E11*(1+F9) -> 1.032 | G11: =F11*(1+G9) -> 1.059864 | H11: 1.087773752 | I11: 1.115693278 | J11: 1.14358561
B12: Price Smoothing Inputs
B13: Year | C13: 2025-26 | D13: 2026-27 | E13: 2027-28 | F13: 2028-29 | G13: 2029-30
B14: Forecast CPI | C14: 0.032 | D14: 0.027 | E14: 0.02633333333 | F14: 0.02566666667 | G14: 0.025 | M14: Updated CPI forecast
B15: Discount rate for smoothing | C15: 0.05754000588 | D15: 0.05801734206 | E15: 0.05874546761 | F15: 0.05983255299 | G15: 0.06094293905 | H15: Same as public lighting
B16: Days in each year | C16: 365 | D16: 365 | E16: 365 | F16: 366 | G16: 365
B19: X factor | C19: 0
B20: Days each year (average) | C20: 365.25
B22: Exchange rate
B23: USD/AUD | C23: =1/0.6289 -> 1.590077914 | D23: 2025-03-31 | M23: Updated USD/AUD exchange rate | O23: Source used | Q23: https://www.rba.gov.au/statistics/historical-data.html#exchange-rates
B26: Proportion of asset base related to refurbishment | C26: 0.05
B28: GST excl
A29: Source | B29: Cost components | C29: $ 2024-25 | D29: Currency | E29: Unit
A30: DTMR SOA | B30: Data Management System | C30: =0.21*E10 -> 0.22408344 | D30: USD to AUD | E30: $/unit/month
A31: DTMR SOA | B31: Testra Telecommunications | C31: =0.83*E10 -> 0.88566312 | D31: AUD | E31: $/unit/month
A32: DTMR SOA | B32: VPN Build and Implementation - blended network | C32: =14400*E10 -> 15365.7216 | D32: AUD | E32: $/annual
A33: DTMR SOA | B33: Training | C33: =(1750*2)*E10 -> 3734.724 | D33: AUD | E33: $/day | F33: 2 | G33: Number of days to be confirmed
A34: DTMR SOA | B34: Implementation services | C34: =1750*E10 -> 1867.362 | D34: AUD | E34: $/day | F34: 3 | G34: Number of days to be confirmed
A35: DTMR SOA | B35: Annual hosting and maintenance fee | C35: =5400*E10 -> 5762.1456 | D35: AUD | E35: $/annual
A36: Ironbark | B36: Opticity Lighting Asset Mapper | C36: 0.7 | D36: AUD | E36: $/unit/year
A37: Ironbark | B37: Opticity Smarts Manager | C37: 3 | D37: AUD | E37: $/unit/year
A38: EQL | B38: Internal Set up costs | C38: =200000+33000 -> 233000 | D38: AUD | E38: One off | G38: Portion allocated to Energex
B39: Asset life (years) | C39: 10
B41: Intallation costs (Direct, $22-23) | C41: 68.91
B42: Overheads
B43: Network overheads | C43: =0.199 -> 0.199
B44: Other ACS corporate allocations | C44: =0.126+0.007+0.061 -> 0.194
B45: Intallation costs (Incl of overheads) | C45: =C41*(1+(C43+C44)) -> 95.99163
B48: Starting price | C48: 0.1608533137
B50: USD to AUD exchange rate | C50: 1.57

Sheet Calc
B1: Ergon Energy - Smart Control Public Lighting Model
B3: Quantities
B5: Year | C5: 2025-26 | D5: 2026-27 | E5: 2027-28 | F5: 2028-29 | G5: 2029-30
B6: Opening | C6: 0 | D6: 1000 | E6: 3000 | F6: 5000 | G6: 7000
B7: Closing | D7: 3500 | E7: 5000 | F7: 7000 | G7: 10000
B8: Average | C8: =AVERAGE(C6:C7) -> 0 | D8: =AVERAGE(D6:D7) -> 2250 | E8: 4000 | F8: 6000 | G8: 8500
B9: Total | C9: =C8 -> 0 | D9: =D8 -> 2250 | E9: 4000 | F9: 6000 | G9: 8500
B11: Revenue ($ nominal) | C11: 2025-26 | D11: 2026-27 | E11: 2027-28 | F11: 2028-29 | G11: 2029-30
B12: Data Management System | C12: 0 | D12: =(Inputs!$C$30*Inputs!G11)*Inputs!$C$23*D9*12 -> 10196.28752 | E12: =(Inputs!$C$30*Inputs!H11)*Inputs!$C$23*E9*12 -> 18604.07067 | F12: =(Inputs!$C$30*Inputs!I11)*Inputs!$C$23*F9*12 -> 28622.36273 | G12: =(Inputs!$C$30*Inputs!J11)*Inputs!$C$23*G9*12 -> 41562.05588
B13: Testra Telecommunications | C13: 0 | D13: =Inputs!$C$31*Inputs!G11*D9*12 -> 25344.42634 | E13: =Inputs!$C$31*Inputs!H11*E9*12 -> 46243.25256 | F13: =Inputs!$C$31*Inputs!I11*F9*12 -> 71145.24407 | G13: =Inputs!$C$31*Inputs!J11*G9*12 -> 103308.8232
B14: VPN Build and Implementation - blended network | C14: 0 | D14: =Inputs!$C$32*Inputs!G11 -> 16285.57516 | E14: =Inputs!$C$32*Inputs!H11 -> 16714.42864 | F14: =Inputs!$C$32*Inputs!I11 -> 17143.43231 | G14: =Inputs!$C$32*Inputs!J11 -> 17572.01811
B15: Training | C15: 0 | D15: =Inputs!$C$33*Inputs!$F$33*Inputs!G11 -> 7916.599035 | E15: =Inputs!$C$33*Inputs!$F$33*Inputs!H11 -> 8125.069476 | F15: =Inputs!$C$33*Inputs!$F$33*Inputs!I11 -> 8333.612926 | G15: =Inputs!$C$33*Inputs!$F$33*Inputs!J11 -> 8541.953249
B16: Implementation services | C16: 0
B17: Annual hosting and maintenance fee | C17: 0 | D17: =Inputs!$C$35*Inputs!G11 -> 6107.090684 | E17: =Inputs!$C$35*Inputs!H11 -> 6267.910739 | F17: =Inputs!$C$35*Inputs!I11 -> 6428.787115 | G17: =Inputs!$C$35*Inputs!J11 -> 6589.506792
B18: Opticity (Lighting Asset Mapper & Smarts Manager) | C18: 0 | D18: =(Inputs!$C$36+Inputs!$C$37)*D9 -> 8325 | E18: =(Inputs!$C$36+Inputs!$C$37)*E9 -> 14800 | F18: =(Inputs!$C$36+Inputs!$C$37)*F9 -> 22200 | G18: =(Inputs!$C$36+Inputs!$C$37)*G9 -> 31450
B19: Internal Setup costs | C19: 0 | D19: =(Inputs!$C$38/Inputs!$C$39)*Inputs!G11 -> 24694.8312 | E19: =(Inputs!$C$38/Inputs!$C$39)*Inputs!H11 -> 25345.12842 | F19: =(Inputs!$C$38/Inputs!$C$39)*Inputs!I11 -> 25995.65338 | G19: =(Inputs!$C$38/Inputs!$C$39)*Inputs!J11 -> 26645.54472
B21: Installation costs (replacement of faulty assets) | C21: =(C9*Inputs!$C$26)*Inputs!$C$45*Inputs!F11 -> 0 | D21: =(D9*Inputs!$C$26)*Inputs!$C$45*Inputs!G11 -> 11445.53321 | E21: =(E9*Inputs!$C$26)*Inputs!$C$45*Inputs!H11 -> 20883.43511 | F21: =(F9*Inputs!$C$26)*Inputs!$C$45*Inputs!I11 -> 32129.16491 | G21: =(G9*Inputs!$C$26)*Inputs!$C$45*Inputs!J11 -> 46654.22488
B23: Total revenue | C23: =SUM(C12:C21) -> 0 | D23: =SUM(D12:D21) -> 110315.3431 | E23: =SUM(E12:E21) -> 156983.2956 | F23: =SUM(F12:F21) -> 211998.2574 | G23: =SUM(G12:G21) -> 282324.1268
B26: Price components | C26: 2025-26 | D26: 2026-27 | E26: 2027-28 | F26: 2028-29 | G26: 2029-30
A27: Annual | B27: Annual opex charge (per unit) | C27: 0 | D27: =D23/D9 -> 49.02904139 | E27: 39.2458239 | F27: 35.33304291 | G27: 33.21460315
A28: Daily | B28: Unsmoothed daily charge (per unit) | C28: 0 | D28: =D27/Inputs!$C$20 -> 0.1342341996 | E28: =E27/Inputs!$C$20 -> 0.1074492099 | F28: =F27/Inputs!$C$20 -> 0.09673659933 | G28: =G27/Inputs!$C$20 -> 0.09093662738
A29: Daily | B29: Smoothed daily charge (per unit) | C29: =Inputs!C48*(1+Inputs!$C$14)*(1-$C$46) -> 0.09379303379 | D29: =C29*(1+Inputs!$D$14)*(1-Inputs!$D$19) -> 0.09632544571 | E29: =D29*(1+Inputs!$E$14)*(1-Inputs!$E$19) -> 0.09886201578 | F29: =E29*(1+Inputs!$F$14)*(1-Inputs!$F$19) -> 0.1013994742 | G29: =F29*(1+Inputs!$G$14)*(1-Inputs!$G$19) -> 0.103934461
B31: Revenue checks | C31: 2025-26 | D31: 2026-27 | E31: 2027-28 | F31: 2028-29 | G31: 2029-30
B33: Cummulative discount rate (used for NPV calculation) | C33: =1+Inputs!C15 -> 1.057540006 | D33: =C33*(1+Inputs!D15) -> 1.118895666 | E33: =D33*(1+Inputs!E15) -> 1.184625715 | F33: =E33*(1+Inputs!F15) -> 1.255504896 | G33: =F33*(1+Inputs!G15) -> 1.332019054
B35: Smart control device opex
B36: Unsmoothed Prices x Volumes | C36: 0 | D36: =D28*D9*Inputs!$C$20 -> 110315.3431 | E36: =E28*E9*Inputs!$C$20 -> 156983.2956 | F36: =F28*F9*Inputs!$C$20 -> 211998.2574 | G36: =G28*G9*Inputs!$C$20 -> 282324.1268
B37: Revenue requirement | C37: 0 | D37: =D23 -> 110315.3431 | E37: 156983.2956 | F37: 211998.2574 | G37: 282324.1268
B38: Check | C38: 0 | D38: =D36-D37 -> 0 | E38: 0 | F38: 0 | G38: 0
B40: Smoothed Prices x Volumes | C40: =C29*C9*Inputs!$C$20 -> 0 | D40: =D29*D9*Inputs!$C$20 -> 79161.45535 | E40: =E29*E9*Inputs!$C$20 -> 144437.4051 | F40: =F29*F9*Inputs!$C$20 -> 222216.9477 | G40: =G29*G9*Inputs!$C$20 -> 322677.5261
B42: NPV Revenue requirement | C42: =(C37/C33)+(D37/D33)+(E37/E33)+(F37/F33)+(G37/G33) -> 611917.2676
B43: NPV Smoothed Prices x Volume | C43: =(C40/C33)+(D40/D33)+(E40/E33)+(F40/F33)+(G40/G33) -> 611917.2676
B44: Check | C44: =C42-C43 -> 0
B46: P0 Rate 2B | C46: 0.4349838336

Sheet Output
B1: Smart control annual prices
B3: Year | C3: 2025-26 | D3: 2026-27 | E3: 2027-28 | F3: 2028-29 | G3: 2029-30
B4: Rate 2B - Gifted & Ergon Energy operated | C4: =Calc!C29*Inputs!C16 -> 34.23445734 | D4: =Calc!D29*Inputs!D16 -> 35.15878768 | E4: =Calc!E29*Inputs!E16 -> 36.08463576 | F4: =Calc!F29*Inputs!F16 -> 37.11220755 | G4: =Calc!G29*Inputs!G16 -> 37.93607828
B6: Daily | C6: 2025-26 | D6: 2026-27 | E6: 2027-28 | F6: 2028-29 | G6: 2029-30
B7: Rate 2B - Gifted & Ergon Energy operated | C7: =Calc!C29 -> 0.09379303379 | D7: =Calc!D29 -> 0.09632544571 | E7: =Calc!E29 -> 0.09886201578 | F7: =Calc!F29 -> 0.1013994742 | G7: =Calc!G29 -> 0.103934461
